{"text_format":"1","workbook":"xlsx","n_sheets":2,"sheets":["Formato_CCT-NM_Superior","Datos"],"not_rendered":{"charts":0,"images":4,"macros":1,"external_links":0,"defined_names":26,"comments":1,"pivot_tables":0},"unopened":[],"bounds":{"document_bytes":16777216,"sheet_cells":100000,"rows_first":2000,"rows_last":500,"rows_between":2000,"halvings":0,"cell_chars":16384,"cell_head_chars":4096},"cells_cut":0,"cells_raw":0,"read":"whole","date_system":"1900"}

{"sheet":"Formato_CCT-NM_Superior","index":0,"n_rows":113,"n_cols":13,"rows_kept":113,"cut":false,"hidden":false,"merged":[[2,0,2,2],[6,0,6,2],[6,4,6,6],[10,0,10,4],[12,4,12,6],[15,2,15,3],[15,4,15,10],[16,2,16,3],[16,4,16,10],[17,2,17,3],[17,4,17,10],[18,2,18,3],[18,4,18,10],[19,3,19,4],[19,9,19,10],[22,3,22,10],[23,3,23,10],[25,3,25,5],[29,2,29,4],[29,8,29,10],[24,3,24,4],[24,5,24,10],[57,1,57,4],[57,7,57,10],[58,1,58,4],[65,0,65,6],[68,3,68,4],[68,6,68,7],[69,3,69,10],[70,3,70,10],[71,3,71,10],[72,3,72,10],[73,3,73,10],[74,3,74,10],[75,3,75,10],[76,3,76,6],[76,8,76,10],[77,3,77,10],[78,3,78,4],[78,6,78,7],[78,9,78,10],[79,3,79,4],[79,6,79,7],[79,9,79,10],[82,0,82,7],[85,1,85,2],[85,4,85,5],[85,7,85,9],[86,1,86,2],[86,4,86,5],[86,7,86,9],[88,1,88,2],[88,4,88,5],[88,7,88,9],[89,1,89,2],[89,4,89,5],[89,7,89,9],[111,1,111,4],[91,1,91,2],[91,4,91,5],[92,1,92,2],[92,4,92,5],[95,0,95,5],[111,7,111,10],[98,0,98,10],[99,2,99,10],[112,1,112,4],[112,7,112,10],[103,0,103,1],[103,4,103,5],[103,6,103,10],[104,0,104,1],[104,6,104,10],[105,0,105,1],[105,6,105,10],[106,0,106,1],[106,6,106,10],[107,0,107,1],[107,6,107,10]]}
[]
[null,null,null,null,"Año",null,"Mes",null,"Día"]
["I.- Fecha de solicitud",null,null,null,{"$f":"YEAR(TODAY())","v":2025},null,{"$f":"MONTH(TODAY())","v":1},null,{"$f":"DAY(TODAY())","v":28}]
[]
[]
[]
["II.- Tipo de movimiento"]
[]
[]
[]
["III.- Datos de ubicación del inmueble"]
[]
[null,"CLAVE DEL INMUEBLE"]
[]
["VIALIDADES"]
[null,"Principal"]
[null,"Derecha"]
[null,"Izquierda"]
[null,"Posterior"]
[null,"Número exterior",null,null,null,null,null,"Número interior"]
[]
[]
[null,"Municipio"]
[null,"Localidad"]
[null,"Asentamiento"]
[null,"Código Postal"]
[]
["Coordenadas"]
[]
[null,"Latitud",null,null,null,null,null,"Longitud"]
[]
[]
["Mapa"]
[]
[]
[]
[]
[]
[]
[]
[]
[]
[]
[]
[]
[]
[]
[]
[]
[]
[]
[]
[]
[]
[]
[]
[]
[null,null,null,null,null,null,null,"DR. FELIPE MOLINA ORDÓÑEZ"]
[null,"NOMBRE DEL DIRECTOR O SOLICITANTE",null,null,null,null,null,"SUBJEFATURA DE SISTEMAS CARTOGRÁFICOS EDUCATIVOS"]
[]
[]
[]
[]
[]
[]
["IV.- Datos de identificación del Centro de Trabajo"]
[]
[]
[null,"Clave del CT",null,null,null,"Turno ","DISCONTINUO"]
[null,"Nombre del CT"]
[null,"Dependencia operativa",null,"PRIVADO",null,null,null,null,null,null,null,null,{"$f":"CONCATENATE(operativa,\"_1\")","v":"PRIVADO_1"}]
[null,"Nivel",null,"EDUCACIÓN SUPERIOR"]
[null,"Subnivel",null,"LICENCIATURA Y POSGRADO"]
[null,"Control",null,{"$f":"IF(operativa=\"PRIVADO\",\"PRIVADO\",\"PÚBLICO\")","v":"PRIVADO"}]
[null,"Subcontrol"]
[null,"Características"]
[null,"Correo electrónico",null,null,null,null,null,"Teléfono"]
[null,"Página WEB"]
[null,"Fecha de fundación"]
[null,null,null,"Año",null,null,"Mes",null,null,"Día"]
[]
[]
["V.- Datos del director o responsable del Centro de Trabajo"]
[]
[]
[]
[null,"Primer apellido",null,null,"Segundo apellido",null,null,"Nombre (s)"]
[]
[]
[null,"RFC",null,null,"Homoclave",null,null,"CURP"]
[]
[]
[null,"Número de celular",null,null,"Estatus del cargo"]
[]
[]
["VI.- Relación con la Institución"]
[]
[]
[]
["Clave ",null,"Nombre "]
[]
["VII.- Tipo de incorporación"]
[]
["Tipo de reconocimiento",null,"Número de acuerdo","Modalidad","Duracción",null,"Año y Nombre del Plan o Programa de Estudios"]
[]
[]
[]
[]
[]
[]
[]
[null,null,null,null,null,null,null,"ING. HÉCTOR DE LA TORRE CRUZ"]
[null,"NOMBRE DEL DIRECTOR O SOLICITANTE",null,null,null,null,null,"SUBJEFATURA DE CATÁLOGOS BÁSICOS"]

{"sheet":"Datos","index":1,"n_rows":201,"n_cols":47,"rows_kept":201,"cut":false,"hidden":false,"merged":[]}
[null,null,null,null,null,null,null,null,"MEDIA SUPERIOR"]
[]
["MOVIMIENTOS",null,"ASENTAMIENTO",null,"MUNICIPIO",null,"VIALIDAD",null,null,null,"CONTROL","PÚBLICO","PRIVADO",null,"CARACTERÍSTICA",null,"TURNO",null,"ESTATUS",null,"DEP_OPERATIVA",null,"RVOE",null,"CV_INST","NOM_INST","CV_INST",null,null,null,null,null,null,null,null,null,null,"UNACH","UNICACH","UNICH","UTS","UP","TecNM","SEE","SEF","PRIVADO","OTROS"]
["ALTA",null,"AMPLIACIÓN",null,"001 ACACOYAGUA",null,"AMPLIACIÓN",null,null,null,"PÚBLICO","AUTÓNOMO","PRIVADO",null,"EXTENSION",null,"DISCONTINUO",null,"TITULAR",null,"UNACH",null,"No aplica",null,"07MSU0074Z","BENEMERITA Y CENTENARIA ESCUELA NORMAL DE LICENCIATURA EN EDUCACION PRIMARIA DEL ESTADO",{"$f":"CONCATENATE(Y4,\"              \",Z4)","v":"07MSU0074Z              BENEMERITA Y CENTENARIA ESCUELA NORMAL DE LICENCIATURA EN EDUCACION PRIMARIA DEL ESTADO"},null,null,null,null,null,null,null,null,null,null,"AUTÓNOMO","ESTATAL","ESTATAL","ESTATAL","ESTATAL","FEDERAL","ESTATAL","FEDERAL TRANSFERIDO","PRIVADO","ESTATAL"]
["CAMBIO DE ATRIBUTO",null,"AEROPUERTO",null,"002 ACALA",null,"ANDADOR",null,null,null,"PRIVADO","ESTATAL",null,null,"NO APLICA",null,"MATUTINO",null,"ENCARGADO",null,"UNICACH",null,"No incorporada, sin autorización, reconocimiento o registro",null,"07MSU0154L","CASA LUZ",{"$f":"CONCATENATE(Y5,\"              \",Z5)","v":"07MSU0154L              CASA LUZ"},null,null,null,null,null,null,null,null,null,null,null,null,null,null,null,null,null,null,null,"FEDERAL"]
["CLAUSURA",null,"BARRIO",null,"003 ACAPETAHUA",null,"AVENIDA",null,null,null,null,"FEDERAL",null,null,"NORMAL",null,"NOCTURNO",null,null,null,"UNICH",null,"Reconocimiento autónomo",null,"07MSU0228M","CENTRO ACADEMICO REGIONAL CHIAPAS",{"$f":"CONCATENATE(Y6,\"             \",Z6)","v":"07MSU0228M             CENTRO ACADEMICO REGIONAL CHIAPAS"},null,null,null,null,null,null,null,null,null,null,null,null,null,null,null,null,null,null,null,"AUTÓNOMO"]
["LATENCIA",null,"CANTÓN",null,"004 ALTAMIRANO",null,"BOULEVARD",null,null,null,null,"FEDERAL TRANSFERIDO",null,null,"UNIVERSIDADES POLITÉCNICAS",null,"VESPERTINO",null,null,null,"UTS",null,"RVOE de la SEP (Federal)",null,"07MSU0150P","CENTRO CULTURAL DE EDUCACION ARTISTICA EN TAPACHULA TITITA","07MSU0150P              CENTRO CULTURAL DE EDUCACION ARTISTICA EN TAPACHULA TITITA"]
["REAPERTURA",null,"CIUDAD",null,"005 AMATÁN",null,"CALLE",null,null,null,null,null,null,null,"UNIVERSIDADES TECNOLÓGICAS",null,null,null,null,null,"UP",null,"RVOE del Gobierno del Estado (Estatal)",null,"07MSU0190Q","CENTRO DE ESPECIALIDADES EN ARTES CULINARIAS","07MSU0190Q              CENTRO DE ESPECIALIDADES EN ARTES CULINARIAS"]
["REAPERTURA CON CAMBIO",null,"CIUDAD INDUSTRIAL",null,"006 AMATENANGO DE LA FRONTERA",null,"CALLEJÓN",null,null,null,null,null,null,null,null,null,null,null,null,null,"TecNM",null,null,null,"07MSU0187C","CENTRO DE ESTUDIOS DE POSGRADO CHIAPAS","07MSU0187C              CENTRO DE ESTUDIOS DE POSGRADO CHIAPAS"]
[null,null,"COLONIA",null,"007 AMATENANGO DEL VALLE",null,"CALZADA",null,null,null,null,null,null,null,null,null,null,null,null,null,"SEE",null,"SUBNIVEL",null,"07MSU0050Q","CENTRO DE ESTUDIOS DE POSGRADO IBEROAMERICANO","07MSU0050Q              CENTRO DE ESTUDIOS DE POSGRADO IBEROAMERICANO"]
[null,null,"CONDOMINIO",null,"008 ÁNGEL ALBINO CORZO",null,"CAMINO",null,null,null,null,null,null,null,null,null,null,null,null,null,"SEF",null,"PROFESIONAL TÉCNICO",null,"07MSU0121U","CENTRO DE ESTUDIOS EN ARTES CULINARIAS Y ENOLOGIA","07MSU0121U              CENTRO DE ESTUDIOS EN ARTES CULINARIAS Y ENOLOGIA",null,null,null,null,null,null,null,null,null,null,"UNACH_1","UNICACH_1","UNICH_1","UTS_1","UP_1","TecNM_1","SEE_1","SEF_1","PRIVADO_1","OTROS_1"]
[null,null,"CONJUNTO HABITACIONAL",null,"009 ARRIAGA",null,"CARRETERA",null,null,null,null,null,null,null,null,null,null,null,null,null,"PRIVADO",null,"PROFESIONAL TÉCNICO BACHILLER",null,"07MSU0224Q","CENTRO DE ESTUDIOS EN NEUROCIENCIAS Y PSICOLOGIA DEL ESTADO DE CHIAPAS","07MSU0224Q              CENTRO DE ESTUDIOS EN NEUROCIENCIAS Y PSICOLOGIA DEL ESTADO DE CHIAPAS",null,null,null,null,null,null,null,null,null,null,"NO APLICA","NO APLICA","NO APLICA","UNIVERSIDADES TECNOLÓGICAS","UNIVERSIDADES POLITÉCNICAS","NO APLICA","NORMAL","NORMAL","NO APLICA","NO APLICA"]
[null,null,"CORREDOR INDUSTRIAL",null,"010 BEJUCAL DE OCAMPO",null,"CERRADA",null,null,null,null,null,null,null,null,null,null,null,null,null,"OTROS",null,"TECNOLÓGICO",null,"07MSU0162U","CENTRO DE ESTUDIOS PROFESIONALES BONAMPAK","07MSU0162U              CENTRO DE ESTUDIOS PROFESIONALES BONAMPAK",null,null,null,null,null,null,null,null,null,null,null,null,null,null,null,"EXTENSIÓN","NO APLICA","NO APLICA"]
[null,null,"COTO",null,"011 BELLA VISTA",null,"CIRCUITO",null,null,null,null,null,null,null,null,null,"UNACH",null,null,null,null,null,null,null,"07MSU0100H","CENTRO DE ESTUDIOS PROFESIONALES DEL GRIJALVA","07MSU0100H              CENTRO DE ESTUDIOS PROFESIONALES DEL GRIJALVA"]
[null,null,"CUARTEL",null,"012 BERRIOZÁBAL",null,"NINGUNO",null,null,null,null,null,null,null,null,null,"UNICACH",null,null,null,null,null,null,null,"07MSU0052O","CENTRO DE ESTUDIOS SUPERIORES BENEMERITO DE LAS AMERICAS","07MSU0052O              CENTRO DE ESTUDIOS SUPERIORES BENEMERITO DE LAS AMERICAS"]
[null,null,"EJIDO",null,"013 BOCHIL",null,"PERIFÉRICO",null,null,null,null,null,null,null,null,null,"UNICH",null,null,null,null,null,"MODALIDAD",null,"07MSU0014L","CENTRO DE ESTUDIOS SUPERIORES DE TAPACHULA, S. C.","07MSU0014L              CENTRO DE ESTUDIOS SUPERIORES DE TAPACHULA, S. C."]
[null,null,"EXHACIENDA",null,"014 EL BOSQUE",null,"PRIVADA",null,null,null,null,null,null,null,null,null,"UTS",null,null,null,null,null,"ESCOLARIZADA",null,"07MSU0094N","CENTRO DE ESTUDIOS SUPERIORES FRAILESCA","07MSU0094N              CENTRO DE ESTUDIOS SUPERIORES FRAILESCA"]
[null,null,"FRACCIÓN",null,"015 CACAHOATÁN",null,"PROLONGANCIÓN",null,null,null,null,null,null,null,null,null,"UP",null,null,null,null,null,"MIXTA",null,"07MSU0207Z","CENTRO DE ESTUDIOS UNIVERSITARIOS AMERICA LATINA","07MSU0207Z              CENTRO DE ESTUDIOS UNIVERSITARIOS AMERICA LATINA"]
[null,null,"FRACCIONAMIENTO",null,"016 CATAZAJÁ",null,"VIADUCTO",null,null,null,null,null,null,null,null,null,"TecNM",null,null,null,null,null,"NO ESCOLARIZADA",null,"07MSU0096L","CENTRO DE ESTUDIOS UNIVERSITARIOS DE CHIAPAS","07MSU0096L              CENTRO DE ESTUDIOS UNIVERSITARIOS DE CHIAPAS"]
[null,null,"GRANJA",null,"017 CINTALAPA",null,null,null,null,null,null,null,null,null,null,null,"SEE",null,null,null,null,null,null,null,"07MSU0230A","CENTRO DE ESTUDIOS UNIVERSITARIOS SAN AGUSTIN","07MSU0230A              CENTRO DE ESTUDIOS UNIVERSITARIOS SAN AGUSTIN"]
[null,null,"HACIENDA",null,"018 COAPILLA",null,null,null,null,null,null,null,null,null,null,null,"SEF",null,null,null,null,null,"DURACIÓN",null,"07MSU0042H","CENTRO DE FORMACION PROFESIONAL DE CHIAPAS MAYA","07MSU0042H              CENTRO DE FORMACION PROFESIONAL DE CHIAPAS MAYA"]
[null,null,"INGENIO",null,"019 COMITÁN DE DOMÍNGUEZ",null,null,null,null,null,null,null,null,null,null,null,"PRIVADO",null,null,null,null,null,"AÑOS",null,"07MSU0231Z","CENTRO DE FORMACIÓN UNIVERSITARIA FILANTRÓPICA INTERNACIONAL","07MSU0231Z              CENTRO DE FORMACIÓN UNIVERSITARIA FILANTRÓPICA INTERNACIONAL"]
[null,null,"MANZANA",null,"020 LA CONCORDIA",null,null,null,null,null,null,null,null,null,null,null,"OTROS",null,"CIESA",null,null,null,"CICLOS",null,"07MSU0062V","CENTRO DE INVESTIGACIONES Y ESTUDIOS SUPERIORES EN ANTROPOLOGIA SOCIAL","07MSU0062V              CENTRO DE INVESTIGACIONES Y ESTUDIOS SUPERIORES EN ANTROPOLOGIA SOCIAL"]
[null,null,"PARAJE",null,"021 COPAINALÁ",null,null,null,null,null,null,null,null,null,null,null,null,null,"DIF",null,null,null,"CUATRIMESTRES",null,"07MSU0192O","CENTRO EDUCATIVO HISPANOAMERICANO DE ESTUDIOS SUPERIORES","07MSU0192O              CENTRO EDUCATIVO HISPANOAMERICANO DE ESTUDIOS SUPERIORES"]
[null,null,"PARQUE INDUSTRIAL",null,"022 CHALCHIHUITÁN",null,null,null,null,null,null,null,null,null,null,null,null,null,"ECOSUR",null,null,null,"MODULAR",null,"07MSU0103E","CENTRO INTERAMERICANO DE ESTUDIOS SUPERIORES EVANGELII NUNTIANDI","07MSU0103E              CENTRO INTERAMERICANO DE ESTUDIOS SUPERIORES EVANGELII NUNTIANDI"]
[null,null,"PRIVADA",null,"023 CHAMULA",null,null,null,null,null,null,null,null,null,null,null,null,null,"IPN",null,null,null,"NO APLICA",null,"07MSU0167P","CENTRO INTERNACIONAL TECNOLOGICO DE ADIESTRAMIENTO Y ASESORAMIENTO DE AVIACION CIVIL","07MSU0167P              CENTRO INTERNACIONAL TECNOLOGICO DE ADIESTRAMIENTO Y ASESORAMIENTO DE AVIACION CIVIL"]
[null,null,"PROLONGACIÓN",null,"024 CHANAL",null,null,null,null,null,null,null,null,null,null,null,null,null,"PC",null,null,null,"OTROS",null,"07MSU0055L","CENTRO PROFESIONAL UNIVERSITARIO","07MSU0055L              CENTRO PROFESIONAL UNIVERSITARIO"]
[null,null,"PUEBLO",null,"025 CHAPULTENANGO",null,null,null,null,null,null,null,null,null,null,null,null,null,"UAAN",null,null,null,"SEMESTRES",null,"07MSU0197J","CENTRO REGIONAL DE FORMACION DOCENTE E INVESTIGACION EDUCATIVA","07MSU0197J              CENTRO REGIONAL DE FORMACION DOCENTE E INVESTIGACION EDUCATIVA"]
[null,null,"PUERTO",null,"026 CHENALHÓ",null,null,null,null,null,null,null,null,null,null,null,null,null,"UNAM",null,null,null,"TRIMESTRES",null,"07MSU5005L","CENTRO UNIVERSITARIO DEL VALLE DE CHIAPAS","07MSU5005L              CENTRO UNIVERSITARIO DEL VALLE DE CHIAPAS"]
[null,null,"RANCHERÍA",null,"027 CHIAPA DE CORZO",null,null,null,null,null,null,null,null,null,null,null,null,null,null,null,null,null,"UNIDADES",null,"07MSU0101G","CENTRO UNIVERSITARIO EN FORMACION ARTISTICA","07MSU0101G              CENTRO UNIVERSITARIO EN FORMACION ARTISTICA"]
[null,null,"RANCHO",null,"028 CHIAPILLA",null,null,null,null,null,null,null,null,null,null,null,null,null,null,null,null,null,null,null,"07MSU0048B","CENTRO UNIVERSITARIO INTERAMERICANO DEL PACIFICO","07MSU0048B              CENTRO UNIVERSITARIO INTERAMERICANO DEL PACIFICO"]
[null,null,"REGIÓN",null,"029 CHICOASÉN",null,null,null,null,null,null,null,null,null,null,null,null,null,null,null,null,null,null,null,"07MSU0186D","CENTRO UNIVERSITARIO JOSE VASCONCELOS CALDERON","07MSU0186D              CENTRO UNIVERSITARIO JOSE VASCONCELOS CALDERON"]
[null,null,"RESIDENCIAL",null,"030 CHICOMUSELO",null,null,null,null,null,null,null,null,null,null,null,null,null,null,null,null,null,null,null,"07MSU0218F","CENTRO UNIVERSITARIO LAS ROSAS","07MSU0218F              CENTRO UNIVERSITARIO LAS ROSAS"]
[null,null,"RINCONADA",null,"031 CHILÓN",null,null,null,null,null,null,null,null,null,null,null,null,null,null,null,null,null,null,null,"07MSU0176X","CENTRO UNIVERSITARIO MANUEL VELASCO SUAREZ","07MSU0176X              CENTRO UNIVERSITARIO MANUEL VELASCO SUAREZ"]
[null,null,"SECCIÓN",null,"032 ESCUINTLA",null,null,null,null,null,null,null,null,null,null,null,null,null,null,null,null,null,null,null,"07MSU0182H","CENTRO UNIVERSITARIO MANUEL VELASCO SUAREZ","07MSU0182H              CENTRO UNIVERSITARIO MANUEL VELASCO SUAREZ"]
[null,null,"SECTOR",null,"033 FRANCISCO LEÓN",null,null,null,null,null,null,null,null,null,null,null,null,null,null,null,null,null,null,null,"07MSU0125Q","CENTRO UNIVERSITARIO MESOAMERICANO JOAQUIN MIGUEL GUTIERREZ","07MSU0125Q              CENTRO UNIVERSITARIO MESOAMERICANO JOAQUIN MIGUEL GUTIERREZ"]
[null,null,"SUPERMANZANA",null,"034 FRONTERA COMALAPA",null,null,null,null,null,null,null,null,null,null,null,null,null,null,null,null,null,null,null,"07MSU0198I","CENTRO UNIVERSITARIO PUJILTIC",{"$f":"CONCATENATE(Y37,\"               \",Z37)","v":"07MSU0198I               CENTRO UNIVERSITARIO PUJILTIC"}]
[null,null,"UNIDAD",null,"035 FRONTERA HIDALGO",null,null,null,null,null,null,null,null,null,null,null,null,null,null,null,null,null,null,null,"07MSU0110O","CENTRO UNIVERSITARIO SAN MARCOS","07MSU0110O              CENTRO UNIVERSITARIO SAN MARCOS"]
[null,null,"UNIDAD HABITACIONAL",null,"036 LA GRANDEZA",null,null,null,null,null,null,null,null,null,null,null,null,null,null,null,null,null,null,null,"07MSU0219E","CENTRO UNIVERSITARIO SOCOLTENANGO","07MSU0219E              CENTRO UNIVERSITARIO SOCOLTENANGO"]
[null,null,"VILLA",null,"037 HUEHUETÁN",null,null,null,null,null,null,null,null,null,null,null,null,null,null,null,null,null,null,null,"07MSU0226O","CENTRO UNIVERSITARIO VILLACARRIEDO","07MSU0226O              CENTRO UNIVERSITARIO VILLACARRIEDO"]
[null,null,"ZONA COMERCIAL",null,"038 HUIXTÁN",null,null,null,null,null,null,null,null,null,null,null,null,null,null,null,null,null,null,null,"07MSU0168O","COLEGIO DE FORMACION EDUCATIVA TENAM","07MSU0168O              COLEGIO DE FORMACION EDUCATIVA TENAM"]
[null,null,"ZONA FEDERAL",null,"039 HUITIUPÁN",null,null,null,null,null,null,null,null,null,null,null,null,null,null,null,null,null,null,null,"07MSU0133Z","COLEGIO ESPAÑOL DEL SURESTE",{"$f":"CONCATENATE(Y42,\"               \",Z42)","v":"07MSU0133Z               COLEGIO ESPAÑOL DEL SURESTE"}]
[null,null,"ZONA INDUSTRIAL",null,"040 HUIXTLA",null,null,null,null,null,null,null,null,null,null,null,null,null,null,null,null,null,null,null,"07MSU0163T","COLEGIO EURO MEXICANO DE CHEFS SOMMELIER","07MSU0163T              COLEGIO EURO MEXICANO DE CHEFS SOMMELIER"]
[null,null,"ZONA MILITAR",null,"041 LA INDEPENDENCIA",null,null,null,null,null,null,null,null,null,null,null,null,null,null,null,null,null,null,null,"07MSU0127O","COLEGIO LIBRE DE CHIAPAS",{"$f":"CONCATENATE(Y44,\"             \",Z44)","v":"07MSU0127O             COLEGIO LIBRE DE CHIAPAS"}]
[null,null,"ZONA NAVAL",null,"042 IXHUATÁN",null,null,null,null,null,null,null,null,null,null,null,null,null,null,null,null,null,null,null,"07MSU0092P","COLEGIO UNIVERSITARIO VERSALLES","07MSU0092P              COLEGIO UNIVERSITARIO VERSALLES"]
[null,null,null,null,"043 IXTACOMITÁN",null,null,null,null,null,null,null,null,null,null,null,null,null,null,null,null,null,null,null,"07MSU0060X","EL COLEGIO DE LA FRONTERA SUR","07MSU0060X              EL COLEGIO DE LA FRONTERA SUR"]
[null,null,null,null,"044 IXTAPA",null,null,null,null,null,null,null,null,null,null,null,null,null,null,null,null,null,null,null,"07MSU5001P","ESCUELA BANCARIA Y COMERCIAL CHIAPAS","07MSU5001P              ESCUELA BANCARIA Y COMERCIAL CHIAPAS"]
[null,null,null,null,"045 IXTAPANGAJOYA",null,null,null,null,null,null,null,null,null,null,null,null,null,null,null,null,null,null,null,"07MSU0021V","ESCUELA DE ENFERMERIA","07MSU0021V              ESCUELA DE ENFERMERIA"]
[null,null,null,null,"046 JIQUIPILAS",null,null,null,null,null,null,null,null,null,null,null,null,null,null,null,null,null,null,null,"07MSU0140I","ESCUELA DE ENFERMERIA TAPACHULA",{"$f":"CONCATENATE(Y49,\"                \",Z49)","v":"07MSU0140I                ESCUELA DE ENFERMERIA TAPACHULA"}]
[null,null,null,null,"047 JITOTOL",null,null,null,null,null,null,null,null,null,null,null,null,null,null,null,null,null,null,null,"07MSU0185E","ESCUELA DE MECÁNICA AUTOMOTRIZ DE CHIAPAS","07MSU0185E              ESCUELA DE MECÁNICA AUTOMOTRIZ DE CHIAPAS"]
[null,null,null,null,"048 JUÁREZ",null,null,null,null,null,null,null,null,null,null,null,null,null,null,null,null,null,null,null,"07MSU0031B","ESCUELA DE MEDICINA ALTERNATIVA","07MSU0031B              ESCUELA DE MEDICINA ALTERNATIVA"]
[null,null,null,null,"049 LARRÁINZAR",null,null,null,null,null,null,null,null,null,null,null,null,null,null,null,null,null,null,null,"07MSU0234X","ESCUELA DE TERAPIA FÍSICA DEL SISTEMA PARA EL DESARROLLO INTEGRAL DE LA FAMILIA DEL ESTADO DE CHIAPAS","07MSU0234X              ESCUELA DE TERAPIA FÍSICA DEL SISTEMA PARA EL DESARROLLO INTEGRAL DE LA FAMILIA DEL ESTADO DE CHIAPAS"]
[null,null,null,null,"050 LA LIBERTAD",null,null,null,null,null,null,null,null,null,null,null,null,null,null,null,null,null,null,null,"07MSU0210N","ESCUELA DE TRANSFORMACIÓN HUMANA CLAUDIO NARANJO","07MSU0210N              ESCUELA DE TRANSFORMACIÓN HUMANA CLAUDIO NARANJO"]
[null,null,null,null,"051 MAPASTEPEC",null,null,null,null,null,null,null,null,null,null,null,null,null,null,null,null,null,null,null,"07MSU0013M","ESCUELA GESTALT DE ARTE Y DISEÑO DE TUXTLA DE A.E.S.C.","07MSU0013M              ESCUELA GESTALT DE ARTE Y DISEÑO DE TUXTLA DE A.E.S.C."]
[null,null,null,null,"052 LAS MARGARITAS",null,null,null,null,null,null,null,null,null,null,null,null,null,null,null,null,null,null,null,"07MSU0203D","ESCUELA NACIONAL DE PROTECCIÓN CIVIL CAMPUS CHIAPAS","07MSU0203D              ESCUELA NACIONAL DE PROTECCIÓN CIVIL CAMPUS CHIAPAS"]
[null,null,null,null,"053 MAZAPA DE MADERO",null,null,null,null,null,null,null,null,null,null,null,null,null,null,null,null,null,null,null,"07MSU0111N","ESCUELA NORMAL DE LICENCIATURA EN EDUCACION ESPECIAL FRAY MATIAS DE CORDOVA","07MSU0111N              ESCUELA NORMAL DE LICENCIATURA EN EDUCACION ESPECIAL FRAY MATIAS DE CORDOVA"]
[null,null,null,null,"054 MAZATÁN",null,null,null,null,null,null,null,null,null,null,null,null,null,null,null,null,null,null,null,"07MSU0083H","ESCUELA NORMAL DE LICENCIATURA EN EDUCACION FISICA DE TAPACHULA","07MSU0083H              ESCUELA NORMAL DE LICENCIATURA EN EDUCACION FISICA DE TAPACHULA"]
[null,null,null,null,"055 METAPA",null,null,null,null,null,null,null,null,null,null,null,null,null,null,null,null,null,null,null,"07MSU0082I","ESCUELA NORMAL DE LICENCIATURA EN EDUCACION FISICA PROFR. PEDRO REYNOL OZUNA HENNING",{"$f":"CONCATENATE(Y58,\"                \",Z58)","v":"07MSU0082I                ESCUELA NORMAL DE LICENCIATURA EN EDUCACION FISICA PROFR. PEDRO REYNOL OZUNA HENNING"}]
[null,null,null,null,"056 MITONTIC",null,null,null,null,null,null,null,null,null,null,null,null,null,null,null,null,null,null,null,"07MSU0069O","ESCUELA NORMAL DE LICENCIATURA EN EDUCACION PREESCOLAR BERTHA VON GLUMER Y LEYVA","07MSU0069O              ESCUELA NORMAL DE LICENCIATURA EN EDUCACION PREESCOLAR BERTHA VON GLUMER Y LEYVA"]
[null,null,null,null,"057 MOTOZINTLA",null,null,null,null,null,null,null,null,null,null,null,null,null,null,null,null,null,null,null,"07MSU0071C","ESCUELA NORMAL DE LICENCIATURA EN EDUCACION PREESCOLAR LIC. MANUEL LARRAINZAR","07MSU0071C              ESCUELA NORMAL DE LICENCIATURA EN EDUCACION PREESCOLAR LIC. MANUEL LARRAINZAR"]
[null,null,null,null,"058 NICOLÁS RUÍZ",null,null,null,null,null,null,null,null,null,null,null,null,null,null,null,null,null,null,null,"07MSU0072B","ESCUELA NORMAL DE LICENCIATURA EN EDUCACION PREESCOLAR ROSARIO CASTELLANOS","07MSU0072B              ESCUELA NORMAL DE LICENCIATURA EN EDUCACION PREESCOLAR ROSARIO CASTELLANOS"]
[null,null,null,null,"059 OCOSINGO",null,null,null,null,null,null,null,null,null,null,null,null,null,null,null,null,null,null,null,"07MSU0070D","ESCUELA NORMAL DE LICENCIATURA EN EDUCACION PREESCOLAR ROSAURA ZAPATA CANO","07MSU0070D              ESCUELA NORMAL DE LICENCIATURA EN EDUCACION PREESCOLAR ROSAURA ZAPATA CANO"]
[null,null,null,null,"060 OCOTEPEC",null,null,null,null,null,null,null,null,null,null,null,null,null,null,null,null,null,null,null,"07MSU0073A","ESCUELA NORMAL DE LICENCIATURA EN EDUCACION PREESCOLAR Y PRIMARIA DEL ESTADO TONALA","07MSU0073A              ESCUELA NORMAL DE LICENCIATURA EN EDUCACION PREESCOLAR Y PRIMARIA DEL ESTADO TONALA"]
[null,null,null,null,"061 OCOZOCOAUTLA DE ESPINOSA",null,null,null,null,null,null,null,null,null,null,null,null,null,null,null,null,null,null,null,"07MSU0075Z","ESCUELA NORMAL DE LICENCIATURA EN EDUCACION PRIMARIA DEL ESTADO","07MSU0075Z              ESCUELA NORMAL DE LICENCIATURA EN EDUCACION PRIMARIA DEL ESTADO"]
[null,null,null,null,"062 OSTUACÁN",null,null,null,null,null,null,null,null,null,null,null,null,null,null,null,null,null,null,null,"07MSU0076Y","ESCUELA NORMAL DE LICENCIATURA EN EDUCACION PRIMARIA DEL OCCIDENTE DE CHIAPAS","07MSU0076Y              ESCUELA NORMAL DE LICENCIATURA EN EDUCACION PRIMARIA DEL OCCIDENTE DE CHIAPAS"]
[null,null,null,null,"063 OSUMACINTA",null,null,null,null,null,null,null,null,null,null,null,null,null,null,null,null,null,null,null,"07MSU0079V","ESCUELA NORMAL DE LICENCIATURA EN EDUCACION PRIMARIA DR. MANUEL VELASCO SUAREZ","07MSU0079V              ESCUELA NORMAL DE LICENCIATURA EN EDUCACION PRIMARIA DR. MANUEL VELASCO SUAREZ"]
[null,null,null,null,"064 OXCHUC",null,null,null,null,null,null,null,null,null,null,null,null,null,null,null,null,null,null,null,"07MSU0080K","ESCUELA NORMAL DE LICENCIATURA EN EDUCACION PRIMARIA LIC. MANUEL LARRAINZAR","07MSU0080K              ESCUELA NORMAL DE LICENCIATURA EN EDUCACION PRIMARIA LIC. MANUEL LARRAINZAR"]
[null,null,null,null,"065 PALENQUE",null,null,null,null,null,null,null,null,null,null,null,null,null,null,null,null,null,null,null,"07MSU0081J","ESCUELA NORMAL DE LICENCIATURA EN EDUCACION PRIMARIA VILLAFLORES","07MSU0081J              ESCUELA NORMAL DE LICENCIATURA EN EDUCACION PRIMARIA VILLAFLORES"]
[null,null,null,null,"066 PANTELHÓ",null,null,null,null,null,null,null,null,null,null,null,null,null,null,null,null,null,null,null,"07MSU0078W","ESCUELA NORMAL DE LICENCIATURA EN EDUCACION PRIMARIA Y ESPECIAL FRAY MATIAS DE CORDOVA",{"$f":"CONCATENATE(Y69,\"             \",Z69)","v":"07MSU0078W             ESCUELA NORMAL DE LICENCIATURA EN EDUCACION PRIMARIA Y ESPECIAL FRAY MATIAS DE CORDOVA"}]
[null,null,null,null,"067 PANTEPEC",null,null,null,null,null,null,null,null,null,null,null,null,null,null,null,null,null,null,null,"07MSU0065S","ESCUELA NORMAL EXPERIMENTAL FRAY MATIAS ANTONIO DE CORDOVA Y ORDOÑEZ",{"$f":"CONCATENATE(Y70,\"              \",Z70)","v":"07MSU0065S              ESCUELA NORMAL EXPERIMENTAL FRAY MATIAS ANTONIO DE CORDOVA Y ORDOÑEZ"}]
[null,null,null,null,"068 PICHUCALCO",null,null,null,null,null,null,null,null,null,null,null,null,null,null,null,null,null,null,null,"07MSU0064T","ESCUELA NORMAL EXPERIMENTAL LA ENSEÑANZA E IGNACIO MANUEL ALTAMIRANO","07MSU0064T              ESCUELA NORMAL EXPERIMENTAL LA ENSEÑANZA E IGNACIO MANUEL ALTAMIRANO"]
[null,null,null,null,"069 PIJIJIAPAN",null,null,null,null,null,null,null,null,null,null,null,null,null,null,null,null,null,null,null,"07MSU0087D","ESCUELA NORMAL INDIGENA INTERCULTURAL BILINGUE JACINTO CANEK","07MSU0087D              ESCUELA NORMAL INDIGENA INTERCULTURAL BILINGUE JACINTO CANEK"]
[null,null,null,null,"070 EL PORVENIR",null,null,null,null,null,null,null,null,null,null,null,null,null,null,null,null,null,null,null,"07MSU0066R","ESCUELA NORMAL RURAL MACTUMACTZA","07MSU0066R              ESCUELA NORMAL RURAL MACTUMACTZA"]
[null,null,null,null,"071 VILLA COMALTITLÁN",null,null,null,null,null,null,null,null,null,null,null,null,null,null,null,null,null,null,null,"07MSU0084G","ESCUELA NORMAL SUPERIOR DE CHIAPAS","07MSU0084G              ESCUELA NORMAL SUPERIOR DE CHIAPAS"]
[null,null,null,null,"072 PUEBLO NUEVO SOLISTAHUACÁN",null,null,null,null,null,null,null,null,null,null,null,null,null,null,null,null,null,null,null,"07MSU0043G","ESCUELA SUPERIOR DE EDUCACION FISICA SAN CRISTOBAL","07MSU0043G              ESCUELA SUPERIOR DE EDUCACION FISICA SAN CRISTOBAL"]
[null,null,null,null,"073 RAYÓN",null,null,null,null,null,null,null,null,null,null,null,null,null,null,null,null,null,null,null,"07MSU0143F","ESCUELA SUPERIOR DE EDUCACION MUSICAL","07MSU0143F              ESCUELA SUPERIOR DE EDUCACION MUSICAL"]
[null,null,null,null,"074 REFORMA",null,null,null,null,null,null,null,null,null,null,null,null,null,null,null,null,null,null,null,"07MSU0106B","ESCUELA SUPERIOR DE TAPACHULA","07MSU0106B              ESCUELA SUPERIOR DE TAPACHULA"]
[null,null,null,null,"075 LAS ROSAS",null,null,null,null,null,null,null,null,null,null,null,null,null,null,null,null,null,null,null,"07MSU0027P","ESCUELA SUPERIOR DE TRABAJO SOCIAL JESUS AQUINO JUAN","07MSU0027P              ESCUELA SUPERIOR DE TRABAJO SOCIAL JESUS AQUINO JUAN"]
[null,null,null,null,"076 SABANILLA",null,null,null,null,null,null,null,null,null,null,null,null,null,null,null,null,null,null,null,"07MSU0200G","ESCUELA SUPERIOR DE TRABAJO SOCIAL JESUS AQUINO JUAN SUBSEDE TAPACHULA","07MSU0200G              ESCUELA SUPERIOR DE TRABAJO SOCIAL JESUS AQUINO JUAN SUBSEDE TAPACHULA"]
[null,null,null,null,"077 SALTO DE AGUA",null,null,null,null,null,null,null,null,null,null,null,null,null,null,null,null,null,null,null,"07MSU0131A","FACULTAD LIBRE DE DERECHO DE CHIAPAS","07MSU0131A              FACULTAD LIBRE DE DERECHO DE CHIAPAS"]
[null,null,null,null,"078 SAN CRISTÓBAL DE LAS CASAS",null,null,null,null,null,null,null,null,null,null,null,null,null,null,null,null,null,null,null,"07MSU0144E","INSTITUTO CHIAPANECO DE EDUCACION PROFESIONAL CONTINUA","07MSU0144E              INSTITUTO CHIAPANECO DE EDUCACION PROFESIONAL CONTINUA"]
[null,null,null,null,"079 SAN FERNANDO",null,null,null,null,null,null,null,null,null,null,null,null,null,null,null,null,null,null,null,"07MSU0132Z","INSTITUTO DE ADMINISTRACION PUBLICA DEL ESTADO DE CHIAPAS","07MSU0132Z              INSTITUTO DE ADMINISTRACION PUBLICA DEL ESTADO DE CHIAPAS"]
[null,null,null,null,"080 SILTEPEC",null,null,null,null,null,null,null,null,null,null,null,null,null,null,null,null,null,null,null,"07MSU0145D","INSTITUTO DE ARTES CULINARIAS PARMENTIER DE SAN CRISTOBAL","07MSU0145D              INSTITUTO DE ARTES CULINARIAS PARMENTIER DE SAN CRISTOBAL"]
[null,null,null,null,"081 SIMOJOVEL",null,null,null,null,null,null,null,null,null,null,null,null,null,null,null,null,null,null,null,"07MSU0044F","INSTITUTO DE CIENCIAS Y ESPECIALIDADES DE CHIAPAS","07MSU0044F              INSTITUTO DE CIENCIAS Y ESPECIALIDADES DE CHIAPAS"]
[null,null,null,null,"082 SITALÁ",null,null,null,null,null,null,null,null,null,null,null,null,null,null,null,null,null,null,null,"07MSU0059H","INSTITUTO DE CIENCIAS Y ESPECIALIDADES DE CHIAPAS","07MSU0059H              INSTITUTO DE CIENCIAS Y ESPECIALIDADES DE CHIAPAS"]
[null,null,null,null,"083 SOCOLTENANGO",null,null,null,null,null,null,null,null,null,null,null,null,null,null,null,null,null,null,null,"07MSU0180J","INSTITUTO DE EDUCACION SUPERIOR EN DESARROLLO HUMANO SUSTENTABLE","07MSU0180J              INSTITUTO DE EDUCACION SUPERIOR EN DESARROLLO HUMANO SUSTENTABLE"]
[null,null,null,null,"084 SOLOSUCHIAPA",null,null,null,null,null,null,null,null,null,null,null,null,null,null,null,null,null,null,null,"07MSU0178V","INSTITUTO DE ESPECIALIZACION Y POSGRADOS DEL SURESTE EN TUXTLA GUTIERREZ","07MSU0178V              INSTITUTO DE ESPECIALIZACION Y POSGRADOS DEL SURESTE EN TUXTLA GUTIERREZ"]
[null,null,null,null,"085 SOYALÓ",null,null,null,null,null,null,null,null,null,null,null,null,null,null,null,null,null,null,null,"07MSU0030C","INSTITUTO DE ESTUDIOS DE POSGRADO","07MSU0030C              INSTITUTO DE ESTUDIOS DE POSGRADO"]
[null,null,null,null,"086 SUCHIAPA",null,null,null,null,null,null,null,null,null,null,null,null,null,null,null,null,null,null,null,"07MSU0119F","INSTITUTO DE ESTUDIOS EN SEXUALIDAD HUMANA DEL ESTADO DE CHIAPAS","07MSU0119F              INSTITUTO DE ESTUDIOS EN SEXUALIDAD HUMANA DEL ESTADO DE CHIAPAS"]
[null,null,null,null,"087 SUCHIATE",null,null,null,null,null,null,null,null,null,null,null,null,null,null,null,null,null,null,null,"07MSU0208Z","INSTITUTO DE ESTUDIOS NEUROPSICOPEDAGÓGICOS CENCAIH","07MSU0208Z              INSTITUTO DE ESTUDIOS NEUROPSICOPEDAGÓGICOS CENCAIH"]
[null,null,null,null,"088 SUNUAPA",null,null,null,null,null,null,null,null,null,null,null,null,null,null,null,null,null,null,null,"07MSU0086E","INSTITUTO DE ESTUDIOS SUPERIORES ADUANALES","07MSU0086E              INSTITUTO DE ESTUDIOS SUPERIORES ADUANALES"]
[null,null,null,null,"089 TAPACHULA",null,null,null,null,null,null,null,null,null,null,null,null,null,null,null,null,null,null,null,"07MSU0235W","INSTITUTO DE ESTUDIOS SUPERIORES ÁGORA",{"$f":"CONCATENATE(Y92,\"             \",Z92)","v":"07MSU0235W             INSTITUTO DE ESTUDIOS SUPERIORES ÁGORA"}]
[null,null,null,null,"090 TAPALAPA",null,null,null,null,null,null,null,null,null,null,null,null,null,null,null,null,null,null,null,"07MSU0225P","INSTITUTO DE ESTUDIOS SUPERIORES AZTECA","07MSU0225P              INSTITUTO DE ESTUDIOS SUPERIORES AZTECA"]
[null,null,null,null,"091 TAPILULA",null,null,null,null,null,null,null,null,null,null,null,null,null,null,null,null,null,null,null,"07MSU0109Z","INSTITUTO DE ESTUDIOS SUPERIORES BENITO JUAREZ GARCIA","07MSU0109Z              INSTITUTO DE ESTUDIOS SUPERIORES BENITO JUAREZ GARCIA"]
[null,null,null,null,"092 TECPATÁN",null,null,null,null,null,null,null,null,null,null,null,null,null,null,null,null,null,null,null,"07MSU0169N","INSTITUTO DE ESTUDIOS SUPERIORES CHARLES BABBAGE","07MSU0169N              INSTITUTO DE ESTUDIOS SUPERIORES CHARLES BABBAGE"]
[null,null,null,null,"093 TENEJAPA",null,null,null,null,null,null,null,null,null,null,null,null,null,null,null,null,null,null,null,"07MSU0161V","INSTITUTO DE ESTUDIOS SUPERIORES COMITAN","07MSU0161V              INSTITUTO DE ESTUDIOS SUPERIORES COMITAN"]
[null,null,null,null,"094 TEOPISCA",null,null,null,null,null,null,null,null,null,null,null,null,null,null,null,null,null,null,null,"07MSU0108Z","INSTITUTO DE ESTUDIOS SUPERIORES DE BERRIOZABAL","07MSU0108Z              INSTITUTO DE ESTUDIOS SUPERIORES DE BERRIOZABAL"]
[null,null,null,null,"096 TILA",null,null,null,null,null,null,null,null,null,null,null,null,null,null,null,null,null,null,null,"07MSU0005D","INSTITUTO DE ESTUDIOS SUPERIORES DE CHIAPAS","07MSU0005D              INSTITUTO DE ESTUDIOS SUPERIORES DE CHIAPAS"]
[null,null,null,null,"097 TONALÁ",null,null,null,null,null,null,null,null,null,null,null,null,null,null,null,null,null,null,null,"07MSU0141H","INSTITUTO DE ESTUDIOS SUPERIORES DE CHIAPAS PLANTEL TUXTLA","07MSU0141H              INSTITUTO DE ESTUDIOS SUPERIORES DE CHIAPAS PLANTEL TUXTLA"]
[null,null,null,null,"098 TOTOLAPA",null,null,null,null,null,null,null,null,null,null,null,null,null,null,null,null,null,null,null,"07MSU0171B","INSTITUTO DE ESTUDIOS SUPERIORES DE MEZCALAPA","07MSU0171B              INSTITUTO DE ESTUDIOS SUPERIORES DE MEZCALAPA"]
[null,null,null,null,"099 LA TRINITARIA",null,null,null,null,null,null,null,null,null,null,null,null,null,null,null,null,null,null,null,"07MSU0137V","INSTITUTO DE ESTUDIOS SUPERIORES DEL SUR","07MSU0137V              INSTITUTO DE ESTUDIOS SUPERIORES DEL SUR"]
[null,null,null,null,"100 TUMBALÁ",null,null,null,null,null,null,null,null,null,null,null,null,null,null,null,null,null,null,null,"07MSU0010P","INSTITUTO DE ESTUDIOS SUPERIORES DEL SURESTE","07MSU0010P              INSTITUTO DE ESTUDIOS SUPERIORES DEL SURESTE"]
[null,null,null,null,"101 TUXTLA GUTIÉRREZ",null,null,null,null,null,null,null,null,null,null,null,null,null,null,null,null,null,null,null,"07MSU0206A","INSTITUTO DE ESTUDIOS SUPERIORES DEL VALLE","07MSU0206A              INSTITUTO DE ESTUDIOS SUPERIORES DEL VALLE"]
[null,null,null,null,"102 TUXTLA CHICO",null,null,null,null,null,null,null,null,null,null,null,null,null,null,null,null,null,null,null,"07MSU0177W","INSTITUTO DE ESTUDIOS SUPERIORES EMILIO RABASA ESTEBANELL","07MSU0177W              INSTITUTO DE ESTUDIOS SUPERIORES EMILIO RABASA ESTEBANELL"]
[null,null,null,null,"103 TUZANTÁN",null,null,null,null,null,null,null,null,null,null,null,null,null,null,null,null,null,null,null,"07MSU0041I","INSTITUTO DE ESTUDIOS SUPERIORES FRONTERA SUR",{"$f":"CONCATENATE(Y105,\"                \",Z105)","v":"07MSU0041I                INSTITUTO DE ESTUDIOS SUPERIORES FRONTERA SUR"}]
[null,null,null,null,"104 TZIMOL",null,null,null,null,null,null,null,null,null,null,null,null,null,null,null,null,null,null,null,"07MSU0129M","INSTITUTO DE ESTUDIOS SUPERIORES FRONTERA SUR PLANTEL SILTEPEC","07MSU0129M              INSTITUTO DE ESTUDIOS SUPERIORES FRONTERA SUR PLANTEL SILTEPEC"]
[null,null,null,null,"105 UNIÓN JUÁREZ",null,null,null,null,null,null,null,null,null,null,null,null,null,null,null,null,null,null,null,"07MSU0211M","INSTITUTO DE ESTUDIOS SUPERIORES GALILEO GALILEI","07MSU0211M              INSTITUTO DE ESTUDIOS SUPERIORES GALILEO GALILEI"]
[null,null,null,null,"106 VENUSTIANO CARRANZA",null,null,null,null,null,null,null,null,null,null,null,null,null,null,null,null,null,null,null,"07MSU0205B","INSTITUTO DE ESTUDIOS SUPERIORES HUITEPEC","07MSU0205B              INSTITUTO DE ESTUDIOS SUPERIORES HUITEPEC"]
[null,null,null,null,"107 VILLA CORZO",null,null,null,null,null,null,null,null,null,null,null,null,null,null,null,null,null,null,null,"07MSU0199H","INSTITUTO DE ESTUDIOS SUPERIORES LAS AGUILAS PLANTEL LAS ROSAS","07MSU0199H              INSTITUTO DE ESTUDIOS SUPERIORES LAS AGUILAS PLANTEL LAS ROSAS"]
[null,null,null,null,"108 VILLAFLORES",null,null,null,null,null,null,null,null,null,null,null,null,null,null,null,null,null,null,null,"07MSU0032A","INSTITUTO DE ESTUDIOS SUPERIORES MANUEL JOSE DE ROJAS","07MSU0032A              INSTITUTO DE ESTUDIOS SUPERIORES MANUEL JOSE DE ROJAS"]
[null,null,null,null,"109 YAJALÓN",null,null,null,null,null,null,null,null,null,null,null,null,null,null,null,null,null,null,null,"07MSU0112M","INSTITUTO DE ESTUDIOS SUPERIORES METROPOLITANO","07MSU0112M              INSTITUTO DE ESTUDIOS SUPERIORES METROPOLITANO"]
[null,null,null,null,"110 SAN LUCAS",null,null,null,null,null,null,null,null,null,null,null,null,null,null,null,null,null,null,null,"07MSU0130B","INSTITUTO DE ESTUDIOS SUPERIORES MIGUEL DE CERVANTES SAAVEDRA","07MSU0130B              INSTITUTO DE ESTUDIOS SUPERIORES MIGUEL DE CERVANTES SAAVEDRA"]
[null,null,null,null,"111 ZINACANTÁN",null,null,null,null,null,null,null,null,null,null,null,null,null,null,null,null,null,null,null,"07MSU0022U","INSTITUTO DE ESTUDIOS SUPERIORES SOR JUANA INES DE LA CRUZ","07MSU0022U              INSTITUTO DE ESTUDIOS SUPERIORES SOR JUANA INES DE LA CRUZ"]
[null,null,null,null,"112 SAN JUAN CANCUC",null,null,null,null,null,null,null,null,null,null,null,null,null,null,null,null,null,null,null,"07MSU0054M","INSTITUTO DE ESTUDIOS SUPERIORES TOMAS DE AQUINO","07MSU0054M              INSTITUTO DE ESTUDIOS SUPERIORES TOMAS DE AQUINO"]
[null,null,null,null,"113 ALDAMA",null,null,null,null,null,null,null,null,null,null,null,null,null,null,null,null,null,null,null,"07MSU0152N","INSTITUTO DE ESTUDIOS SUPERIORES WILLIAMS SHAKESPEARE","07MSU0152N              INSTITUTO DE ESTUDIOS SUPERIORES WILLIAMS SHAKESPEARE"]
[null,null,null,null,"114 BENEMÉRITO DE LAS AMÉRICAS",null,null,null,null,null,null,null,null,null,null,null,null,null,null,null,null,null,null,null,"07MSU0024S","INSTITUTO DE ESTUDIOS UNIVERSITARIOS","07MSU0024S              INSTITUTO DE ESTUDIOS UNIVERSITARIOS"]
[null,null,null,null,"115 MARAVILLA TENEJAPA",null,null,null,null,null,null,null,null,null,null,null,null,null,null,null,null,null,null,null,"07MSU0165R","INSTITUTO DE ESTUDIOS UNIVERSITARIOS GANDHI","07MSU0165R              INSTITUTO DE ESTUDIOS UNIVERSITARIOS GANDHI"]
[null,null,null,null,"116 MARQUÉS DE COMILLAS",null,null,null,null,null,null,null,null,null,null,null,null,null,null,null,null,null,null,null,"07MSU0118G","INSTITUTO DE FORMACION ACADEMICA DEL CENTRO Y SURESTE","07MSU0118G              INSTITUTO DE FORMACION ACADEMICA DEL CENTRO Y SURESTE"]
[null,null,null,null,"117 MONTECRISTO DE GUERRERO",null,null,null,null,null,null,null,null,null,null,null,null,null,null,null,null,null,null,null,"07MSU0153M","INSTITUTO DE FORMACION EMPRESARIAL","07MSU0153M              INSTITUTO DE FORMACION EMPRESARIAL"]
[null,null,null,null,"118 SAN ANDRÉS DURAZNAL",null,null,null,null,null,null,null,null,null,null,null,null,null,null,null,null,null,null,null,"07MSU0115J","INSTITUTO DE FORMACION POLICIAL",{"$f":"CONCATENATE(Y120,\"               \",Z120)","v":"07MSU0115J               INSTITUTO DE FORMACION POLICIAL"}]
[null,null,null,null,"119 SANTIAGO EL PINAR",null,null,null,null,null,null,null,null,null,null,null,null,null,null,null,null,null,null,null,"07MSU0233Y","INSTITUTO DE FORMACIÓN UNIVERSITARIA DEL SUR","07MSU0233Y              INSTITUTO DE FORMACIÓN UNIVERSITARIA DEL SUR"]
[null,null,null,null,"120 CAPITÁN LUIS ÁNGEL VIDAL",null,null,null,null,null,null,null,null,null,null,null,null,null,null,null,null,null,null,null,"07MSU0156J","INSTITUTO DE GASTRONOMIA Y ARTES CULINARIAS GOURMAND",{"$f":"CONCATENATE(Y122,\"               \",Z122)","v":"07MSU0156J               INSTITUTO DE GASTRONOMIA Y ARTES CULINARIAS GOURMAND"}]
[null,null,null,null,"121 RINCÓN CHAMULA SAN PEDRO",null,null,null,null,null,null,null,null,null,null,null,null,null,null,null,null,null,null,null,"07MSU0194M","INSTITUTO DE INVESTIGACION Y DE POSGRADO LUIS VIVES","07MSU0194M              INSTITUTO DE INVESTIGACION Y DE POSGRADO LUIS VIVES"]
[null,null,null,null,"122 EL PARRAL",null,null,null,null,null,null,null,null,null,null,null,null,null,null,null,null,null,null,null,"07MSU0164S","INSTITUTO DE INVESTIGACIONES Y POSGRADOS ELECTORALES","07MSU0164S              INSTITUTO DE INVESTIGACIONES Y POSGRADOS ELECTORALES"]
[null,null,null,null,"123 EMILIANO ZAPATA",null,null,null,null,null,null,null,null,null,null,null,null,null,null,null,null,null,null,null,"07MSU0216H","INSTITUTO DEL PENSAMIENTO CRÍTICO PARA LA TRANSFORMACIÓN SOCIAL SUSTENTABLE","07MSU0216H              INSTITUTO DEL PENSAMIENTO CRÍTICO PARA LA TRANSFORMACIÓN SOCIAL SUSTENTABLE"]
[null,null,null,null,"124 MEZCALAPA",null,null,null,null,null,null,null,null,null,null,null,null,null,null,null,null,null,null,null,"07MSU0232Z","INSTITUTO EN CIENCIAS DE LA SALUD Y MEDICINA INTEGRAL SAMUEL HAHNEMANN","07MSU0232Z              INSTITUTO EN CIENCIAS DE LA SALUD Y MEDICINA INTEGRAL SAMUEL HAHNEMANN"]
[null,null,null,null,"125 HONDURAS DE LA SIERRA",null,null,null,null,null,null,null,null,null,null,null,null,null,null,null,null,null,null,null,"07MSU0184F","INSTITUTO GASTRONOMICO DE TAPACHULA MASTER CHEF","07MSU0184F              INSTITUTO GASTRONOMICO DE TAPACHULA MASTER CHEF"]
[null,null,null,null,null,null,null,null,null,null,null,null,null,null,null,null,null,null,null,null,null,null,null,null,"07MSU0095M","INSTITUTO HISPANO JAIME SABINES","07MSU0095M              INSTITUTO HISPANO JAIME SABINES"]
[null,null,null,null,null,null,null,null,null,null,null,null,null,null,null,null,null,null,null,null,null,null,null,null,"07MSU0135X","INSTITUTO HUMANISTA DE PSICOTERAPIA GESTALT CHIAPAS","07MSU0135X              INSTITUTO HUMANISTA DE PSICOTERAPIA GESTALT CHIAPAS"]
[null,null,null,null,null,null,null,null,null,null,null,null,null,null,null,null,null,null,null,null,null,null,null,null,"07MSU0126P","INSTITUTO LATINOAMERICANO DE ESTUDIOS PROFESIONALES DE CHIAPAS","07MSU0126P              INSTITUTO LATINOAMERICANO DE ESTUDIOS PROFESIONALES DE CHIAPAS"]
[null,null,null,null,null,null,null,null,null,null,null,null,null,null,null,null,null,null,null,null,null,null,null,null,"07MSU0155K","INSTITUTO LATINOAMERICANO DE ESTUDIOS SUPERIORES","07MSU0155K              INSTITUTO LATINOAMERICANO DE ESTUDIOS SUPERIORES"]
[null,null,null,null,null,null,null,null,null,null,null,null,null,null,null,null,null,null,null,null,null,null,null,null,"07MSU0221T","INSTITUTO METROPOLITANO DE CHIAPAS","07MSU0221T              INSTITUTO METROPOLITANO DE CHIAPAS"]
[null,null,null,null,null,null,null,null,null,null,null,null,null,null,null,null,null,null,null,null,null,null,null,null,"07MSU0142G","INSTITUTO MULTIDICIPLINARIO DE ESPECIALIZACION",{"$f":"CONCATENATE(Y133,\"              \",Z133)","v":"07MSU0142G              INSTITUTO MULTIDICIPLINARIO DE ESPECIALIZACION"}]
[null,null,null,null,null,null,null,null,null,null,null,null,null,null,null,null,null,null,null,null,null,null,null,null,"07MSU0023T","INSTITUTO NACIONAL DE ESTUDIOS FISCALES","07MSU0023T              INSTITUTO NACIONAL DE ESTUDIOS FISCALES"]
[null,null,null,null,null,null,null,null,null,null,null,null,null,null,null,null,null,null,null,null,null,null,null,null,"07MSU0146C","INSTITUTO NOTARIAL MESOAMERICANO","07MSU0146C              INSTITUTO NOTARIAL MESOAMERICANO"]
[null,null,null,null,null,null,null,null,null,null,null,null,null,null,null,null,null,null,null,null,null,null,null,null,"07MSU0136W","INSTITUTO PENSAMIENTO Y CULTURA EN AMERICA LATINA","07MSU0136W              INSTITUTO PENSAMIENTO Y CULTURA EN AMERICA LATINA"]
[null,null,null,null,null,null,null,null,null,null,null,null,null,null,null,null,null,null,null,null,null,null,null,null,"07MSU0170C","INSTITUTO PROFESIONAL DE EMPRENDEDORES","07MSU0170C              INSTITUTO PROFESIONAL DE EMPRENDEDORES"]
[null,null,null,null,null,null,null,null,null,null,null,null,null,null,null,null,null,null,null,null,null,null,null,null,"07MSU0116I","INSTITUTO PROFESIONAL EDUCATIVO DEL SURESTE",{"$f":"CONCATENATE(Y138,\"                \",Z138)","v":"07MSU0116I                INSTITUTO PROFESIONAL EDUCATIVO DEL SURESTE"}]
[null,null,null,null,null,null,null,null,null,null,null,null,null,null,null,null,null,null,null,null,null,null,null,null,"07MSU0053N","INSTITUTO SUPERIOR DE DISEÑO DE MODAS MANIQUIE","07MSU0053N              INSTITUTO SUPERIOR DE DISEÑO DE MODAS MANIQUIE"]
[null,null,null,null,null,null,null,null,null,null,null,null,null,null,null,null,null,null,null,null,null,null,null,null,"07MSU0113L","INSTITUTO SUPERIOR LEUZAGI","07MSU0113L              INSTITUTO SUPERIOR LEUZAGI"]
[null,null,null,null,null,null,null,null,null,null,null,null,null,null,null,null,null,null,null,null,null,null,null,null,"07MSU0196K","INSTITUTO SUPERIOR UNIVERSITARIO AMADO NERVO","07MSU0196K              INSTITUTO SUPERIOR UNIVERSITARIO AMADO NERVO"]
[null,null,null,null,null,null,null,null,null,null,null,null,null,null,null,null,null,null,null,null,null,null,null,null,"07MSU0183G","INSTITUTO SUPERIOR UNIVERSITARIO OVIDIO DECROLY","07MSU0183G              INSTITUTO SUPERIOR UNIVERSITARIO OVIDIO DECROLY"]
[null,null,null,null,null,null,null,null,null,null,null,null,null,null,null,null,null,null,null,null,null,null,null,null,"07MSU0006C","INSTITUTO TECNOLOGICO DE COMITAN","07MSU0006C              INSTITUTO TECNOLOGICO DE COMITAN"]
[null,null,null,null,null,null,null,null,null,null,null,null,null,null,null,null,null,null,null,null,null,null,null,null,"07MSU0220U","INSTITUTO TECNOLÓGICO DE ESPECIALIDADES","07MSU0220U              INSTITUTO TECNOLÓGICO DE ESPECIALIDADES"]
[null,null,null,null,null,null,null,null,null,null,null,null,null,null,null,null,null,null,null,null,null,null,null,null,"07MSU0015K","INSTITUTO TECNOLOGICO DE ESTUDIOS SUPERIORES DE MONTERREY CAMPUS CHIAPAS","07MSU0015K              INSTITUTO TECNOLOGICO DE ESTUDIOS SUPERIORES DE MONTERREY CAMPUS CHIAPAS"]
[null,null,null,null,null,null,null,null,null,null,null,null,null,null,null,null,null,null,null,null,null,null,null,null,"07MSU0147B","INSTITUTO TECNOLOGICO DE FRONTERA COMALAPA","07MSU0147B              INSTITUTO TECNOLOGICO DE FRONTERA COMALAPA"]
[null,null,null,null,null,null,null,null,null,null,null,null,null,null,null,null,null,null,null,null,null,null,null,null,"07MSU0008A","INSTITUTO TECNOLOGICO DE TAPACHULA","07MSU0008A              INSTITUTO TECNOLOGICO DE TAPACHULA"]
[null,null,null,null,null,null,null,null,null,null,null,null,null,null,null,null,null,null,null,null,null,null,null,null,"07MSU0003F","INSTITUTO TECNOLOGICO DE TUXTLA GUTIERREZ","07MSU0003F              INSTITUTO TECNOLOGICO DE TUXTLA GUTIERREZ"]
[null,null,null,null,null,null,null,null,null,null,null,null,null,null,null,null,null,null,null,null,null,null,null,null,"07MSU0063U","INSTITUTO TECNOLOGICO SUPERIOR DE CINTALAPA","07MSU0063U              INSTITUTO TECNOLOGICO SUPERIOR DE CINTALAPA"]
[null,null,null,null,null,null,null,null,null,null,null,null,null,null,null,null,null,null,null,null,null,null,null,null,"07MSU0215I","INSTITUTO UNIVERSITARIO ANTONIO CASO",{"$f":"CONCATENATE(Y150,\"                \",Z150)","v":"07MSU0215I                INSTITUTO UNIVERSITARIO ANTONIO CASO"}]
[null,null,null,null,null,null,null,null,null,null,null,null,null,null,null,null,null,null,null,null,null,null,null,null,"07MSU0227N","INSTITUTO UNIVERSITARIO BUENOS AIRES","07MSU0227N              INSTITUTO UNIVERSITARIO BUENOS AIRES"]
[null,null,null,null,null,null,null,null,null,null,null,null,null,null,null,null,null,null,null,null,null,null,null,null,"07MSU0134Y","INSTITUTO UNIVERSITARIO DE CIENCIAS EN LA ESTETICA HUMANA","07MSU0134Y              INSTITUTO UNIVERSITARIO DE CIENCIAS EN LA ESTETICA HUMANA"]
[null,null,null,null,null,null,null,null,null,null,null,null,null,null,null,null,null,null,null,null,null,null,null,null,"07MSU0195L","INSTITUTO UNIVERSITARIO DE ESTUDIOS CHIAPAS","07MSU0195L              INSTITUTO UNIVERSITARIO DE ESTUDIOS CHIAPAS"]
[null,null,null,null,null,null,null,null,null,null,null,null,null,null,null,null,null,null,null,null,null,null,null,null,"07MSU0105C","INSTITUTO UNIVERSITARIO DE ESTUDIOS MEXICO PLANTEL SAN CRISTOBAL","07MSU0105C              INSTITUTO UNIVERSITARIO DE ESTUDIOS MEXICO PLANTEL SAN CRISTOBAL"]
[null,null,null,null,null,null,null,null,null,null,null,null,null,null,null,null,null,null,null,null,null,null,null,null,"07MSU0104D","INSTITUTO UNIVERSITARIO DE MEXICO","07MSU0104D              INSTITUTO UNIVERSITARIO DE MEXICO"]
[null,null,null,null,null,null,null,null,null,null,null,null,null,null,null,null,null,null,null,null,null,null,null,null,"07MSU0217G","INSTITUTO UNIVERSITARIO DE MÉXICO CAMPUS TAPACHULA","07MSU0217G              INSTITUTO UNIVERSITARIO DE MÉXICO CAMPUS TAPACHULA"]
[null,null,null,null,null,null,null,null,null,null,null,null,null,null,null,null,null,null,null,null,null,null,null,null,"07MSU0173Z","INSTITUTO UNIVERSITARIO PANAMERICANO","07MSU0173Z              INSTITUTO UNIVERSITARIO PANAMERICANO"]
[null,null,null,null,null,null,null,null,null,null,null,null,null,null,null,null,null,null,null,null,null,null,null,null,"07MSU0223R","UNIDAD PROFESIONAL INTERDISCIPLINARIA DE INGENIERIA CAMPUS PALENQUE","07MSU0223R              UNIDAD PROFESIONAL INTERDISCIPLINARIA DE INGENIERIA CAMPUS PALENQUE"]
[null,null,null,null,null,null,null,null,null,null,null,null,null,null,null,null,null,null,null,null,null,null,null,null,"07MSU0001H","UNIVERSIDAD AUTONOMA DE CHIAPAS","07MSU0001H              UNIVERSIDAD AUTONOMA DE CHIAPAS"]
[null,null,null,null,null,null,null,null,null,null,null,null,null,null,null,null,null,null,null,null,null,null,null,null,"07MSU0229L","UNIVERSIDAD CECADEVS","07MSU0229L              UNIVERSIDAD CECADEVS"]
[null,null,null,null,null,null,null,null,null,null,null,null,null,null,null,null,null,null,null,null,null,null,null,null,"07MSU0124R","UNIVERSIDAD CEUSS","07MSU0124R              UNIVERSIDAD CEUSS"]
[null,null,null,null,null,null,null,null,null,null,null,null,null,null,null,null,null,null,null,null,null,null,null,null,"07MSU0188B","UNIVERSIDAD CIENTIFICA E IDIOMAS DE AMERICA LATINA","07MSU0188B              UNIVERSIDAD CIENTIFICA E IDIOMAS DE AMERICA LATINA"]
[null,null,null,null,null,null,null,null,null,null,null,null,null,null,null,null,null,null,null,null,null,null,null,null,"07MSU0117H","UNIVERSIDAD DE BACHAJON","07MSU0117H              UNIVERSIDAD DE BACHAJON"]
[null,null,null,null,null,null,null,null,null,null,null,null,null,null,null,null,null,null,null,null,null,null,null,null,"07MSU0172A","UNIVERSIDAD DE CHIAPAS","07MSU0172A              UNIVERSIDAD DE CHIAPAS"]
[null,null,null,null,null,null,null,null,null,null,null,null,null,null,null,null,null,null,null,null,null,null,null,null,"07MSU0102F","UNIVERSIDAD DE CIENCIA Y TECNOLOGIA DESCARTES","07MSU0102F              UNIVERSIDAD DE CIENCIA Y TECNOLOGIA DESCARTES"]
[null,null,null,null,null,null,null,null,null,null,null,null,null,null,null,null,null,null,null,null,null,null,null,null,"07MSU0002G","UNIVERSIDAD DE CIENCIAS Y ARTES DE CHIAPAS","07MSU0002G              UNIVERSIDAD DE CIENCIAS Y ARTES DE CHIAPAS"]
[null,null,null,null,null,null,null,null,null,null,null,null,null,null,null,null,null,null,null,null,null,null,null,null,"07MSU0016J","UNIVERSIDAD DE ESTUDIOS SUPERIORES DE TUXTLA",{"$f":"CONCATENATE(Y167,\"               \",Z167)","v":"07MSU0016J               UNIVERSIDAD DE ESTUDIOS SUPERIORES DE TUXTLA"}]
[null,null,null,null,null,null,null,null,null,null,null,null,null,null,null,null,null,null,null,null,null,null,null,null,"07MSU0012N","UNIVERSIDAD DE LOS ALTOS DE CHIAPAS","07MSU0012N              UNIVERSIDAD DE LOS ALTOS DE CHIAPAS"]
[null,null,null,null,null,null,null,null,null,null,null,null,null,null,null,null,null,null,null,null,null,null,null,null,"07MSU0174Z","UNIVERSIDAD DE LOS ANGELES","07MSU0174Z              UNIVERSIDAD DE LOS ANGELES"]
[null,null,null,null,null,null,null,null,null,null,null,null,null,null,null,null,null,null,null,null,null,null,null,null,"07MSU0018H","UNIVERSIDAD DEL PACIFICO DE CHIAPAS","07MSU0018H              UNIVERSIDAD DEL PACIFICO DE CHIAPAS"]
[null,null,null,null,null,null,null,null,null,null,null,null,null,null,null,null,null,null,null,null,null,null,null,null,"07MSU0204C","UNIVERSIDAD DEL PAIS INNOVA","07MSU0204C              UNIVERSIDAD DEL PAIS INNOVA"]
[null,null,null,null,null,null,null,null,null,null,null,null,null,null,null,null,null,null,null,null,null,null,null,null,"07MSU0045E","UNIVERSIDAD DEL SOCONUSCO","07MSU0045E              UNIVERSIDAD DEL SOCONUSCO"]
[null,null,null,null,null,null,null,null,null,null,null,null,null,null,null,null,null,null,null,null,null,null,null,null,"07MSU0058I","UNIVERSIDAD DEL SUR",{"$f":"CONCATENATE(Y173,\"               \",Z173)","v":"07MSU0058I               UNIVERSIDAD DEL SUR"}]
[null,null,null,null,null,null,null,null,null,null,null,null,null,null,null,null,null,null,null,null,null,null,null,null,"07MSU0090R","UNIVERSIDAD DEL SURESTE","07MSU0090R              UNIVERSIDAD DEL SURESTE"]
[null,null,null,null,null,null,null,null,null,null,null,null,null,null,null,null,null,null,null,null,null,null,null,null,"07MSU0097K","UNIVERSIDAD DEL SURESTE DE MEXICO","07MSU0097K              UNIVERSIDAD DEL SURESTE DE MEXICO"]
[null,null,null,null,null,null,null,null,null,null,null,null,null,null,null,null,null,null,null,null,null,null,null,null,"07MSU0025R","UNIVERSIDAD DEL TACANA","07MSU0025R              UNIVERSIDAD DEL TACANA"]
[null,null,null,null,null,null,null,null,null,null,null,null,null,null,null,null,null,null,null,null,null,null,null,null,"07MSU5002O","UNIVERSIDAD DEL VALLE DE MEXICO, CAMPUS TUXTLA","07MSU5002O              UNIVERSIDAD DEL VALLE DE MEXICO, CAMPUS TUXTLA"]
[null,null,null,null,null,null,null,null,null,null,null,null,null,null,null,null,null,null,null,null,null,null,null,null,"07MSU0160W","UNIVERSIDAD IEXPRO","07MSU0160W              UNIVERSIDAD IEXPRO"]
[null,null,null,null,null,null,null,null,null,null,null,null,null,null,null,null,null,null,null,null,null,null,null,null,"07MSU5004M","UNIVERSIDAD INTERAMERICANA PARA EL DESARROLLO CAMPUS TAPACHULA","07MSU5004M              UNIVERSIDAD INTERAMERICANA PARA EL DESARROLLO CAMPUS TAPACHULA"]
[null,null,null,null,null,null,null,null,null,null,null,null,null,null,null,null,null,null,null,null,null,null,null,null,"07MSU0098J","UNIVERSIDAD INTERCULTURAL DE CHIAPAS",{"$f":"CONCATENATE(Y180,\"               \",Z180)","v":"07MSU0098J               UNIVERSIDAD INTERCULTURAL DE CHIAPAS"}]
[null,null,null,null,null,null,null,null,null,null,null,null,null,null,null,null,null,null,null,null,null,null,null,null,"07MSU0175Y","UNIVERSIDAD INTERNACIONAL DEL CONOCIMIENTO E INVESTIGACION","07MSU0175Y              UNIVERSIDAD INTERNACIONAL DEL CONOCIMIENTO E INVESTIGACION"]
[null,null,null,null,null,null,null,null,null,null,null,null,null,null,null,null,null,null,null,null,null,null,null,null,"07MSU0114K","UNIVERSIDAD JOSE VASCONCELOS","07MSU0114K              UNIVERSIDAD JOSE VASCONCELOS"]
[null,null,null,null,null,null,null,null,null,null,null,null,null,null,null,null,null,null,null,null,null,null,null,null,"07MSU0148A","UNIVERSIDAD LATINOAMERICANA DE MEXICO","07MSU0148A              UNIVERSIDAD LATINOAMERICANA DE MEXICO"]
[null,null,null,null,null,null,null,null,null,null,null,null,null,null,null,null,null,null,null,null,null,null,null,null,"07MSU0061W","UNIVERSIDAD LINDA VISTA","07MSU0061W              UNIVERSIDAD LINDA VISTA"]
[null,null,null,null,null,null,null,null,null,null,null,null,null,null,null,null,null,null,null,null,null,null,null,null,"07MSU0035Y","UNIVERSIDAD LINDA VISTA PLANTEL TUXTLA GUTIERREZ","07MSU0035Y              UNIVERSIDAD LINDA VISTA PLANTEL TUXTLA GUTIERREZ"]
[null,null,null,null,null,null,null,null,null,null,null,null,null,null,null,null,null,null,null,null,null,null,null,null,"07MSU0128N","UNIVERSIDAD MARIANO NICOLAS RUIZ SUASNAVAR","07MSU0128N              UNIVERSIDAD MARIANO NICOLAS RUIZ SUASNAVAR"]
[null,null,null,null,null,null,null,null,null,null,null,null,null,null,null,null,null,null,null,null,null,null,null,null,"07MSU0040J","UNIVERSIDAD MERIDIONAL",{"$f":"CONCATENATE(Y187,\"               \",Z187)","v":"07MSU0040J               UNIVERSIDAD MERIDIONAL"}]
[null,null,null,null,null,null,null,null,null,null,null,null,null,null,null,null,null,null,null,null,null,null,null,null,"07MSU0017I","UNIVERSIDAD MESOAMERICANA",{"$f":"CONCATENATE(Y188,\"               \",Z188)","v":"07MSU0017I               UNIVERSIDAD MESOAMERICANA"}]
[null,null,null,null,null,null,null,null,null,null,null,null,null,null,null,null,null,null,null,null,null,null,null,null,"07MSU0222S","UNIVERSIDAD NACIONAL AUTÓNOMA DE MÉXICO","07MSU0222S              UNIVERSIDAD NACIONAL AUTÓNOMA DE MÉXICO"]
[null,null,null,null,null,null,null,null,null,null,null,null,null,null,null,null,null,null,null,null,null,null,null,null,"07MSU0019G","UNIVERSIDAD PABLO GUARDADO CHAVEZ","07MSU0019G              UNIVERSIDAD PABLO GUARDADO CHAVEZ"]
[null,null,null,null,null,null,null,null,null,null,null,null,null,null,null,null,null,null,null,null,null,null,null,null,"07MSU0028O","UNIVERSIDAD PEDAGOGICA NACIONAL UNIDAD 071 TUXTLA","07MSU0028O              UNIVERSIDAD PEDAGOGICA NACIONAL UNIDAD 071 TUXTLA"]
[null,null,null,null,null,null,null,null,null,null,null,null,null,null,null,null,null,null,null,null,null,null,null,null,"07MSU0029N","UNIVERSIDAD PEDAGOGICA NACIONAL UNIDAD 072 TAPACHULA","07MSU0029N              UNIVERSIDAD PEDAGOGICA NACIONAL UNIDAD 072 TAPACHULA"]
[null,null,null,null,null,null,null,null,null,null,null,null,null,null,null,null,null,null,null,null,null,null,null,null,"07MSU0093O","UNIVERSIDAD POLITECNICA DE CHIAPAS","07MSU0093O              UNIVERSIDAD POLITECNICA DE CHIAPAS"]
[null,null,null,null,null,null,null,null,null,null,null,null,null,null,null,null,null,null,null,null,null,null,null,null,"07MSU0151O","UNIVERSIDAD POLITECNICA DE TAPACHULA","07MSU0151O              UNIVERSIDAD POLITECNICA DE TAPACHULA"]
[null,null,null,null,null,null,null,null,null,null,null,null,null,null,null,null,null,null,null,null,null,null,null,null,"07MSU0046D","UNIVERSIDAD PRIVADA DEL SUR DE MEXICO","07MSU0046D              UNIVERSIDAD PRIVADA DEL SUR DE MEXICO"]
[null,null,null,null,null,null,null,null,null,null,null,null,null,null,null,null,null,null,null,null,null,null,null,null,"07MSU0026Q","UNIVERSIDAD SAN CRISTOBAL","07MSU0026Q              UNIVERSIDAD SAN CRISTOBAL"]
[null,null,null,null,null,null,null,null,null,null,null,null,null,null,null,null,null,null,null,null,null,null,null,null,"07MSU0011O","UNIVERSIDAD SAN MARCOS",{"$f":"CONCATENATE(Y197,\"              \",Z197)","v":"07MSU0011O              UNIVERSIDAD SAN MARCOS"}]
[null,null,null,null,null,null,null,null,null,null,null,null,null,null,null,null,null,null,null,null,null,null,null,null,"07MSU0039U","UNIVERSIDAD TECNOLÓGICA DE LA SELVA","07MSU0039U              UNIVERSIDAD TECNOLÓGICA DE LA SELVA"]
[null,null,null,null,null,null,null,null,null,null,null,null,null,null,null,null,null,null,null,null,null,null,null,null,"07MSU0166Q","UNIVERSIDAD TEOLOGICA DE CHIAPAS JUAN PABLO II","07MSU0166Q              UNIVERSIDAD TEOLOGICA DE CHIAPAS JUAN PABLO II"]
[null,null,null,null,null,null,null,null,null,null,null,null,null,null,null,null,null,null,null,null,null,null,null,null,"07MSU0009Z","UNIVERSIDAD VALLE DEL GRIJALVA",{"$f":"CONCATENATE(Y200,\"               \",Z200)","v":"07MSU0009Z               UNIVERSIDAD VALLE DEL GRIJALVA"}]
[null,null,null,null,null,null,null,null,null,null,null,null,null,null,null,null,null,null,null,null,null,null,null,null,null,null,"NO APLICA"]